bitfinex/quotes_ETHUSD_20240618
["timestamp","ask_amount","ask_price","bid_price","bid_amount"]
[1718693737620,0.864,3438.9,3438.0,1.30248798]
[1718693738708,2.2666,3439.0,3438.1,0.05816977]
[1718693738936,0.864,3439.1,3438.2,0.864]
[1718693739121,4.507361,3439.3,3438.4,0.864]
[1718693739310,4.507361,3439.3,3438.6,0.864]
[1718693739499,3.0,3439.3,3438.6,1.468881]
[1718693739697,5.01059692,3439.5,3438.7,0.55]
[1718693740085,2.11333453,3439.4,3438.7,0.55]
[1718693740292,1.507361,3439.3,3438.7,0.55]
[1718693740730,4.507361,3439.3,3438.7,0.55]
[1718693740898,3.503178,3439.5,3438.7,0.55]
[1718693741109,1.51041093,3439.3,3438.7,0.55]
[1718693741312,1.51041093,3439.1,3438.6,0.55]
[1718693742302,4.79691093,3439.0,3437.7,2.4143]
[1718693742512,3.2865,3439.0,3437.9,0.864]
[1718693742710,1.51238205,3438.5,3437.9,0.864]
[1718693743327,1.51238205,3438.3,3437.7,3.2783]
[1718693743623,2.4441,3438.2,3436.7,10.94794897]
[1718693743828,2.4441,3438.2,3437.3,0.864]
[1718693743829,1.51238205,3437.9,3437.3,0.864]
[1718693744034,1.51238205,3438.0,3437.3,0.864]
[1718693744197,1.51238205,3437.9,3437.5,0.864]
[1718693744725,1.51238205,3437.8,3437.4,0.864]
[1718693745095,1.51238205,3437.9,3437.4,0.864]
[1718693745295,1.51238205,3437.8,3437.4,0.864]
[1718693745524,1.51238205,3437.9,3436.9,2.3099]
[1718693745931,1.51118057,3437.8,3436.9,2.3099]
[1718693746121,1.51118057,3437.9,3436.9,2.3099]
[1718693746446,4.25751668,3438.2,3436.9,2.3099]
[1718693746447,1.51118057,3437.8,3436.9,2.3099]
[1718693747231,1.51118057,3437.9,3436.9,2.3099]
[1718693747528,1.51118057,3438.0,3437.0,0.05817715]
[1718693747731,1.51118057,3438.0,3436.9,2.3099]
[1718693748035,1.51118057,3437.9,3436.9,2.3099]
[1718693749128,1.51118057,3437.8,3436.9,2.3099]
[1718693749430,1.81341668,3438.2,3436.9,2.3099]
[1718693749431,1.51118057,3437.9,3436.9,2.3099]
[1718693749826,1.51118057,3437.8,3436.9,2.3099]
[1718693750020,1.51118057,3437.8,3436.9,5.21945]
[1718693750227,1.51118057,3438.0,3437.0,2.90951]
[1718693750398,1.51118057,3438.1,3437.0,2.90951]
[1718693750596,1.51118057,3438.1,3436.9,5.21949]
[1718693750802,1.51118057,3438.2,3437.0,2.90951]
[1718693751532,1.51118057,3438.1,3437.1,2.90942]
[1718693751736,1.51118057,3438.2,3437.5,2.3523]
[1718693752322,4.51118057,3438.3,3437.7,0.23543]
[1718693752506,8.94118057,3438.5,3437.8,0.05817112]
[1718693752836,7.43,3438.5,3437.8,0.05817112]
[1718693753615,1.51118057,3438.6,3437.7,0.23543]
[1718693753922,1.51118057,3438.7,3437.8,0.55]
[1718693754128,1.51118057,3438.6,3437.9,0.369641]
[1718693754445,7.43,3439.1,3438.0,2.9043]
[1718693754446,1.51118057,3438.9,3438.0,2.9043]
[1718693754652,1.51118057,3439.0,3438.1,0.0581625]
[1718693754822,1.51118057,3439.0,3438.2,0.55]
[1718693755026,1.51118057,3439.0,3438.3,0.35440834]
[1718693755224,1.51118057,3439.0,3438.3,0.29624625]
[1718693755419,1.51118057,3439.0,3438.4,0.05816269]
[1718693755620,1.51118057,3439.0,3438.3,0.29624625]
[1718693755946,1.51118057,3439.0,3437.6,0.002]
[1718693755947,2.074,3438.5,3437.6,0.002]
[1718693756148,2.4854,3438.9,3437.6,0.002]
[1718693756149,1.50909327,3438.7,3437.6,0.002]
[1718693756344,1.50909327,3438.3,3437.7,2.469]
[1718693756639,1.50909327,3438.5,3437.8,0.2471]
[1718693757931,1.50909327,3438.4,3437.8,0.2471]
[1718693760440,1.50909327,3438.5,3437.8,0.2471]
[1718693761240,1.50909327,3438.5,3437.8,0.3052694]
[1718693761823,1.50909327,3438.6,3437.9,0.55]
[1718693762067,1.50909327,3438.7,3438.0,0.32661]
[1718693762355,1.50909327,3438.5,3437.7,2.469]
[1718693762537,1.50909327,3438.5,3437.8,0.55]
[1718693764650,4.50909327,3438.7,3437.9,0.05816928]
[1718693764837,1.50909327,3438.7,3438.0,2.8559]
[1718693765058,3.0,3438.9,3438.1,0.34957179]
[1718693765059,1.50909327,3438.8,3438.1,0.34957179]
[1718693765410,1.50909327,3438.8,3438.1,0.29140693]
[1718693765627,1.50909327,3438.8,3438.1,0.34957084]
[1718693766152,4.50909327,3438.9,3438.1,0.34957084]
[1718693766414,4.50909327,3438.9,3438.2,0.32054708]
[1718693767959,4.50909327,3438.9,3438.3,0.6081628]
[1718693768130,4.50909327,3438.9,3438.3,0.55]
[1718693769224,8.9397508,3439.0,3438.3,0.55]
[1718693769422,8.9397508,3439.0,3438.4,2.4881]
[1718693769654,8.9397508,3439.0,3438.4,2.82396471]
[1718693770021,1.5097508,3439.0,3438.4,2.82396471]
[1718693772855,1.5097508,3438.5,3437.6,0.002]
[1718693773221,1.50912164,3438.2,3437.6,0.002]
[1718693773557,1.50912164,3438.1,3437.6,0.002]
[1718693774451,1.50912164,3438.0,3437.6,0.002]
[1718693775173,1.50912164,3438.1,3437.6,0.002]
[1718693775461,1.50912164,3438.0,3437.6,0.002]
[1718693778145,4.50912164,3438.3,3437.6,0.002]
[1718693778346,1.50912164,3438.3,3437.6,0.002]
[1718693778544,4.50912164,3438.5,3437.7,2.2746]
[1718693778742,1.50912164,3438.5,3437.8,0.77766]
[1718693779872,1.50843031,3438.4,3437.8,0.77766]
[1718693780035,1.50843031,3438.5,3437.8,0.77766]
[1718693780441,1.50843031,3438.4,3437.8,0.77766]
[1718693781491,1.50843031,3438.4,3437.9,0.305426]
[1718693781634,1.50843031,3438.5,3437.9,0.305426]
[1718693782143,1.50843031,3438.4,3437.9,0.305426]
[1718693782548,1.50843031,3438.3,3437.7,2.2746]
[1718693784757,1.50843031,3438.4,3437.8,0.058174]
[1718693784973,4.50843031,3438.6,3437.8,0.55]
[1718693785174,1.50843031,3438.6,3437.9,0.28266]
[1718693785374,1.50843031,3438.6,3438.0,0.55]
[1718693787176,1.50843031,3438.5,3438.0,0.55]
[1718693787539,1.50843031,3438.6,3438.0,0.55]
[1718693788474,1.50843031,3438.6,3437.9,0.28266]
[1718693788665,1.50843031,3438.6,3438.0,0.05816686]
[1718693789180,1.50843031,3438.6,3437.9,0.28266]
[1718693789351,1.50843031,3438.6,3438.0,2.4163]
[1718693789557,1.51030405,3438.6,3438.1,0.269896]
[1718693790778,1.51030405,3438.6,3438.2,2.3488]
[1718693791286,1.51030405,3438.6,3438.3,0.0581644]
[1718693791949,1.51030405,3438.6,3438.4,2.3354]
[1718693792153,1.51030405,3438.6,3438.5,0.05816156]
[1718693792389,1.51030405,3438.6,3438.5,0.2451726]
[1718693797195,1.51030405,3438.6,3438.1,0.269896]
[1718693797566,1.51030405,3438.6,3438.2,0.05816201]
[1718693798075,1.51030405,3438.6,3438.3,2.2978]
[1718693798464,1.51030405,3438.6,3438.3,5.20619]
[1718693799659,1.51030405,3438.6,3438.4,0.0581605]
[1718693799894,1.51030405,3438.6,3438.5,0.52643505]
[1718693800056,1.51030405,3438.6,3438.3,2.2978]
[1718693800280,1.51030405,3438.6,3437.1,10.33941]
[1718693800281,1.51030405,3438.6,3437.7,2.3679]
[1718693802106,3.84190405,3438.8,3437.8,0.05816833]
[1718693802703,3.84190405,3438.8,3437.7,2.3679]
[1718693802902,3.84190405,3438.8,3437.8,0.527889]
[1718693803408,2.2982,3439.2,3437.8,3.436649]
[1718693803713,1.50892859,3438.9,3437.9,2.90869]
[1718693803911,3.0,3439.4,3438.2,2.90849]
[1718693803912,1.50892859,3439.0,3438.2,2.90849]
[1718693804207,1.50892859,3439.0,3438.4,2.3629]
[1718693804422,1.50892859,3439.1,3438.5,0.60815604]
[1718693804709,2.11250003,3439.7,3438.5,0.60815604]
[1718693804710,1.50892859,3439.8,3439.0,2.9078]
[1718693804917,1.50892859,3440.0,3439.1,5.64393653]
[1718693805132,1.50892859,3440.0,3439.1,5.58579]
[1718693805406,1.50892859,3440.1,3439.1,5.58579]
[1718693805623,9.9258,3440.3,3439.2,0.61672338]
[1718693805834,1.81071431,3440.4,3439.5,2.90733]
[1718693805988,1.50914138,3440.5,3439.4,2.90746]
[1718693806475,1.50914138,3440.6,3439.4,2.90746]
[1718693808103,4.50914138,3440.7,3439.1,2.76908]
[1718693808302,1.50914138,3440.5,3439.1,2.76908]
[1718693808712,1.5069983,3440.5,3439.1,2.76908]
[1718693809014,1.5069983,3440.5,3439.2,0.567694]
[1718693809215,1.5069983,3440.6,3439.2,0.567694]
[1718693810189,3.0,3440.7,3439.2,0.567694]
[1718693810190,1.5069983,3440.4,3439.2,0.567694]
[1718693810387,2.398,3440.2,3438.7,2.3295]
[1718693810619,1.89749813,3440.1,3438.7,3.20827]
[1718693810920,1.89749813,3440.1,3438.7,2.3295]
[1718693811120,1.5069983,3440.0,3438.7,2.3295]
[1718693811280,4.5069983,3440.0,3438.8,0.05815322]
[1718693811481,4.5069983,3440.0,3438.9,0.52957832]
[1718693811482,3.0,3440.0,3438.9,0.52957832]
[1718693811679,1.5069983,3440.0,3438.7,5.23756]
[1718693811904,3.0,3440.0,3438.7,5.23756]
[1718693812097,4.02954981,3440.0,3438.8,0.523756]
[1718693812509,5.53654811,3440.0,3438.3,2.3797]
[1718693812712,1.5069983,3439.9,3438.3,2.3797]
[1718693812934,1.5069983,3439.5,3438.0,0.8713369]
[1718693813280,1.5069983,3439.4,3438.1,5.4224305]
[1718693813481,1.5069983,3439.6,3438.2,0.89493719]
[1718693813712,1.5069983,3439.6,3438.3,0.05816046]
[1718693813918,1.5069983,3439.6,3438.2,0.83677674]
[1718693814211,1.5069983,3439.6,3438.3,0.05816046]
[1718693814785,1.5069983,3439.6,3438.2,0.83677674]
[1718693814986,0.69974983,3439.5,3438.3,0.91463836]
[1718693815622,0.69974983,3439.5,3438.1,2.4557]
[1718693815787,4.5069983,3439.7,3438.3,2.9084]
[1718693816124,3.0,3439.6,3438.4,3.45831]
[1718693816298,3.0,3439.6,3438.5,3.599901]
[1718693816499,3.0,3439.7,3438.5,0.691671]
[1718693816721,2.4905,3439.8,3438.5,0.691671]
[1718693817026,2.4905,3439.8,3438.6,0.0581529]
[1718693817236,3.0,3439.9,3438.6,0.0581529]
[1718693817531,1.50527107,3440.0,3438.7,0.42080439]
[1718693817532,4.50527107,3440.0,3438.7,0.42080439]
[1718693817699,4.50527107,3440.0,3438.5,0.691671]
[1718693817700,1.50527107,3439.8,3438.5,0.691671]
[1718693818927,1.50527107,3439.8,3438.6,2.32015191]
[1718693819080,4.50527107,3440.1,3438.7,2.90806]
[1718693819277,4.50527107,3440.2,3438.8,4.39892849]
[1718693819500,3.99587107,3440.3,3438.9,2.90789]
[1718693819734,3.99587107,3440.3,3439.0,0.55]
[1718693819914,3.99587107,3440.3,3439.1,0.48907013]
[1718693820418,1.50527107,3440.4,3439.2,2.39674396]
[1718693820615,1.50527107,3440.4,3439.3,0.05814393]
[1718693820843,7.43,3440.6,3439.3,0.05814393]
[1718693820844,1.50527107,3440.5,3439.3,0.05814393]
[1718693821149,0.50306251,3440.7,3439.3,0.05814393]
[1718693821150,1.50527107,3440.7,3439.3,0.05814393]
[1718693821420,1.80632529,3441.0,3439.5,2.90737]
[1718693821421,1.50527107,3441.0,3439.5,2.90737]
[1718693821581,1.50527107,3441.0,3439.6,0.60813297]
[1718693821981,1.50527107,3441.1,3439.6,0.60813297]
[1718693822178,7.43,3441.2,3439.6,0.60813297]
[1718693822179,1.50527107,3441.0,3439.7,0.63762564]
[1718693822438,7.43,3441.2,3439.9,2.4128]
[1718693822583,1.50527107,3441.1,3439.4,3.19955341]
[1718693822921,1.50527107,3441.1,3439.4,2.4128]
[1718693822922,1.50527107,3441.0,3439.4,2.4128]
[1718693823217,1.50527107,3440.7,3439.4,2.4128]
[1718693823391,1.50527107,3440.8,3439.4,2.4128]
[1718693823978,1.50527107,3440.9,3439.5,2.90734]
[1718693824213,1.50527107,3440.9,3439.6,1.082014]
[1718693824414,4.50527107,3441.1,3439.6,1.082014]
[1718693824625,4.50527107,3441.1,3439.7,2.96534186]
[1718693824918,3.0,3441.1,3439.8,0.60813132]
[1718693825715,3.0,3441.1,3439.8,0.55]
[1718693825937,3.0,3441.1,3439.9,0.3989224]
[1718693826117,3.0,3441.1,3439.9,0.45705373]
[1718693827231,3.0,3441.2,3440.0,2.3419]
[1718693827435,1.50527107,3441.3,3440.1,0.05812971]
[1718693827924,3.0,3441.4,3440.1,0.05812971]
[1718693827925,4.50527107,3441.4,3440.1,0.05812971]
[1718693828125,3.0,3441.3,3440.2,0.27989521]
[1718693828342,1.50527107,3441.4,3440.3,0.05812702]
[1718693829719,1.50616057,3441.4,3440.3,0.05812702]
[1718693830032,1.50616057,3441.5,3440.3,0.05812702]
[1718693830183,1.50616057,3441.4,3440.3,0.05812702]
[1718693830387,1.50616057,3441.5,3440.3,0.32611924]
[1718693830795,1.50616057,3441.5,3440.3,0.26799222]
[1718693831196,1.50616057,3441.4,3440.3,0.26799222]
[1718693831396,1.50616057,3441.5,3440.3,0.26799222]
[1718693831607,0.45061606,3441.4,3440.3,0.26799222]
[1718693832124,1.95677663,3441.4,3440.3,0.26799222]
[1718693832551,0.45061606,3441.4,3440.3,0.26799222]
[1718693833202,1.95677663,3441.4,3440.3,0.26799222]
[1718693833511,0.45061606,3441.4,3440.3,0.26799222]
[1718693834093,1.95677663,3441.4,3440.3,0.26799222]
[1718693834293,0.45061606,3441.4,3440.3,0.26799222]
[1718693834694,1.95677663,3441.4,3440.3,0.26799222]
[1718693836936,0.45061606,3441.4,3440.3,0.26799222]
[1718693837096,1.95677663,3441.4,3440.3,0.26799222]
[1718693839541,0.45061606,3441.4,3440.3,0.26799222]
[1718693839697,1.95677663,3441.4,3440.3,0.26799222]
[1718693840336,0.45061606,3441.4,3440.3,0.26799222]
[1718693841501,0.45061606,3441.4,3440.4,2.2513]
[1718693843199,1.50616057,3441.5,3440.4,2.2513]
[1718693843599,1.50616057,3441.4,3440.4,2.2513]
[1718693844596,1.50616057,3441.3,3440.0,2.3844]
[1718693844824,1.50616057,3441.4,3440.0,2.3844]
[1718693846241,1.50616057,3441.3,3440.0,2.3844]
[1718693846445,1.50616057,3441.4,3440.0,2.3844]
[1718693846607,2.18780951,3441.4,3440.1,0.529151]
[1718693847149,1.50616057,3441.4,3440.2,2.44162884]
[1718693847310,1.50616057,3441.4,3440.3,2.35552715]
[1718693848128,1.50616057,3441.3,3440.3,2.2974]
[1718693849249,1.50616057,3441.2,3440.3,2.2974]
[1718693849408,2.074,3441.0,3439.3,2.3215]
[1718693849604,4.55017663,3440.9,3439.4,1.265917]
[1718693849837,1.50616057,3440.7,3439.3,2.3215]
[1718693850023,1.50616057,3440.6,3439.3,2.3215]
[1718693850343,1.50616057,3440.5,3439.3,2.3215]
[1718693850550,1.50616057,3440.6,3439.3,5.22904]
[1718693850972,1.50616057,3440.6,3439.3,2.3215]
[1718693851134,1.95677663,3440.5,3439.3,2.55365]
[1718693852432,1.96017279,3440.5,3439.3,2.55365]
[1718693853952,0.45061606,3440.5,3439.3,2.3215]
[1718693854249,4.4175,3440.2,3438.8,2.4564]
[1718693854452,2.11309058,3440.1,3438.8,2.4564]
[1718693854638,3.0,3440.1,3438.8,2.4564]
[1718693854836,2.11318138,3440.0,3438.8,2.4564]
[1718693855039,5.11318138,3440.0,3438.8,2.4564]
[1718693855223,1.25306814,3439.9,3438.8,2.4564]
[1718693855625,3.0,3440.1,3438.9,0.05815732]
[1718693855863,3.0,3440.2,3438.9,0.05815732]
[1718693856576,3.0,3440.2,3439.0,2.47855171]
[1718693856760,4.3545,3440.6,3439.0,2.47855171]
[1718693856761,3.0,3440.5,3439.1,2.4204]
[1718693857053,0.43545,3440.5,3439.2,2.3798]
[1718693857245,2.11292201,3440.4,3439.2,2.3798]
[1718693857440,3.0,3440.4,3439.2,2.3798]
[1718693857646,0.43545,3440.5,3439.2,2.3798]
[1718693857840,0.43545,3440.5,3439.3,0.58262002]
[1718693858853,2.11293807,3440.4,3439.2,2.3798]
[1718693859074,5.11293807,3440.4,3439.2,2.3798]
[1718693859230,1.50931496,3440.0,3439.2,2.3798]
[1718693861537,1.50931496,3440.0,3438.7,2.3462]
[1718693861741,2.26420394,3439.9,3438.7,2.3462]
[1718693862067,2.11327244,3439.8,3438.7,2.3462]
[1718693862572,5.11327244,3439.8,3438.7,2.3462]
[1718693862786,2.11327244,3439.7,3438.7,2.3462]
[1718693862939,2.11327244,3439.6,3438.7,2.3462]
[1718693863138,2.32459968,3439.5,3438.7,2.3462]
[1718693863335,0.21132724,3439.5,3438.0,2.3462]
[1718693863683,2.11348259,3439.4,3438.0,2.3462]
[1718693864336,1.50931496,3439.0,3438.0,2.3462]
[1718693864532,1.50931496,3439.1,3438.0,2.3462]
[1718693864833,5.074,3439.2,3438.0,2.3462]
[1718693864834,1.50943454,3438.9,3438.0,2.3462]
[1718693865036,0.9648315,3439.0,3438.0,2.3462]
[1718693866364,3.0,3439.2,3438.0,2.3462]
[1718693866569,2.074,3439.4,3438.0,2.3462]
[1718693866866,2.11368372,3439.3,3438.0,2.3462]
[1718693867038,5.11368372,3439.3,3438.0,2.3462]
[1718693867366,3.0,3439.3,3438.0,2.3462]
[1718693867670,0.52853272,3439.2,3438.0,2.3462]
[1718693868267,3.0,3439.3,3438.1,0.05816787]
[1718693868439,2.074,3439.4,3438.1,0.05816787]
[1718693868838,2.074,3439.4,3438.2,2.2995]
[1718693869260,3.21132724,3439.5,3438.2,2.2995]
[1718693869461,0.21132724,3439.5,3438.3,0.0581625]
[1718693869658,0.32113272,3439.4,3438.4,2.4472]
[1718693869865,0.21132724,3439.5,3438.4,2.4472]
[1718693870046,5.074,3439.8,3438.4,2.4472]
[1718693871776,5.074,3439.8,3438.5,0.05816116]
[1718693871934,5.074,3439.8,3438.4,2.4472]
[1718693876951,2.074,3439.4,3438.4,2.4472]
[1718693880687,2.074,3439.0,3438.4,2.4472]
[1718693882396,2.074,3439.3,3438.4,2.4472]
[1718693882546,5.074,3439.6,3438.4,2.4472]
[1718693882745,3.0,3439.6,3438.4,2.4472]
[1718693882968,2.074,3439.6,3438.4,2.4472]
[1718693883283,2.074,3439.6,3438.0,2.90866]
[1718693883284,2.074,3439.6,3438.6,2.2587]
[1718693883873,2.074,3439.6,3438.7,0.05815612]
[1718693884186,0.50321642,3440.1,3438.9,2.3516]
[1718693884187,2.074,3440.0,3438.9,2.3516]
[1718693884398,2.074,3440.0,3439.1,2.3516]
[1718693884553,7.43,3440.2,3439.1,2.3516]
[1718693884554,9.504,3440.2,3439.1,2.3516]
[1718693884888,9.504,3440.2,3439.2,2.64490965]
[1718693885047,9.504,3440.2,3439.2,2.58676]
[1718693889355,2.074,3440.2,3439.2,2.58676]
[1718693898023,2.11293846,3440.1,3439.2,2.58676]
[1718693898229,2.074,3440.2,3439.2,2.58676]
[1718693898522,2.11292478,3440.1,3439.3,0.549458]
[1718693898714,2.074,3440.2,3439.3,0.549458]
[1718693899022,2.11290969,3440.1,3439.3,0.549458]
[1718693899924,2.074,3440.2,3439.3,0.549458]
[1718693900125,2.074,3440.2,3439.4,2.3674]
[1718693900332,2.074,3440.2,3439.5,0.3152018]
[1718693900702,3.0,3440.7,3439.5,0.3152018]
[1718693900703,2.074,3440.6,3439.5,0.3152018]
[1718693900908,2.11284597,3440.5,3439.5,0.3152018]
[1718693901122,5.11284597,3440.5,3439.5,0.3152018]
[1718693901459,2.11284597,3440.4,3439.5,0.3152018]
[1718693901738,5.11284597,3440.4,3439.5,0.3152018]
[1718693901950,2.11284597,3440.3,3439.6,0.32320598]
[1718693902113,3.0,3440.5,3439.7,2.284]
[1718693902313,2.11277801,3440.4,3439.7,2.284]
[1718693902535,3.0,3440.5,3439.7,2.284]
[1718693902736,2.11277325,3440.4,3439.7,2.5447206]
[1718693902914,2.074,3440.6,3439.7,2.5447206]
[1718693903234,2.11277157,3440.5,3439.7,2.5447206]
[1718693903434,5.11277157,3440.5,3439.7,2.5447206]
[1718693903633,3.0,3440.5,3439.7,2.5447206]
[1718693903835,2.11271193,3440.4,3439.7,2.5447206]
[1718693904023,3.0,3440.5,3439.7,2.5447206]
[1718693904214,2.11275847,3440.4,3439.7,2.5447206]
[1718693905032,2.11275847,3440.4,3439.8,0.25447206]
[1718693905228,3.0,3440.5,3439.8,0.25447206]
[1718693905419,2.074,3440.6,3439.8,0.25447206]
[1718693905615,2.11268758,3440.5,3439.7,2.284]
[1718693905821,5.11268758,3440.5,3439.7,2.284]
[1718693906143,2.11268758,3440.4,3439.7,2.284]
[1718693906342,5.11268758,3440.4,3439.7,2.284]
[1718693906542,2.11268758,3440.3,3439.7,2.284]
[1718693906709,0.56157613,3440.2,3439.7,2.284]
[1718693907040,3.0,3440.5,3439.7,2.284]
[1718693907213,2.074,3440.7,3439.7,2.284]
[1718693907408,2.11271316,3440.6,3439.7,2.284]
[1718693907743,5.11271316,3440.6,3439.7,2.284]
[1718693907907,3.0,3440.6,3439.7,2.284]
[1718693908107,5.074,3440.7,3439.7,2.284]
[1718693908338,3.41340997,3440.6,3439.7,2.284]
[1718693908642,3.0,3440.5,3439.7,2.284]
[1718693908830,5.074,3440.7,3439.7,2.284]
[1718693909011,2.11268924,3440.6,3439.7,2.284]
[1718693909217,5.11268924,3440.6,3439.7,2.284]
[1718693909425,3.0,3440.6,3439.7,2.284]
[1718693909627,5.074,3440.7,3439.7,2.284]
[1718693909821,2.11268936,3440.6,3439.7,2.284]
[1718693910031,5.11268936,3440.6,3439.7,2.284]
[1718693910347,3.0,3440.6,3439.7,2.284]
[1718693913037,2.074,3440.7,3439.7,2.284]
[1718693913219,2.11262511,3440.6,3439.7,2.284]
[1718693913426,3.0,3441.0,3439.9,2.4295]
[1718693913619,2.11259601,3440.9,3439.9,2.4295]
[1718693914246,3.0,3441.0,3440.1,2.4903]
[1718693914455,3.0,3441.4,3440.3,2.4903]
[1718693914616,2.11234156,3441.3,3440.3,2.4903]
[1718693915064,3.0,3441.3,3440.3,2.4903]
[1718693915263,2.074,3441.1,3440.3,2.4903]
[1718693915557,2.11242897,3441.0,3440.3,2.4903]
[1718693916949,2.074,3440.7,3439.3,2.4993]
[1718693917137,0.43804,3440.6,3439.4,0.840688]
[1718693919015,0.43804,3440.6,3439.5,2.4356]
[1718693919243,2.11266563,3440.5,3439.5,2.4356]
[1718693919447,2.074,3440.7,3439.5,2.4356]
[1718693919643,2.11264277,3440.6,3439.5,2.4356]
[1718693921568,2.11264277,3440.6,3439.7,2.2647]
[1718693921762,2.57703301,3441.1,3439.7,2.2647]
[1718693921763,3.0,3441.0,3439.7,2.2647]
[1718693922067,3.41320763,3440.9,3439.8,2.3107]
[1718693922289,5.11250433,3440.8,3439.8,2.3107]
[1718693922480,2.11250433,3440.7,3439.8,2.3107]
[1718693922781,3.0,3440.8,3439.8,2.3107]
[1718693922992,2.11249389,3440.7,3439.8,2.3107]
[1718693928215,2.11260986,3440.6,3439.8,2.3107]
[1718693928517,2.11249389,3440.5,3439.8,2.3107]
[1718693929014,2.11249389,3440.4,3439.8,2.3107]
[1718693929215,0.65390878,3440.8,3439.8,2.3107]
[1718693929378,4.7979737,3440.7,3439.8,2.3107]
[1718693929579,4.22518282,3440.6,3439.8,2.3107]
[1718693929811,4.22518282,3440.5,3439.8,2.3107]
[1718693930020,2.11255914,3440.4,3439.8,2.3107]
[1718693930219,2.11255914,3440.3,3439.8,2.3107]
[1718693930420,0.57279088,3440.7,3439.8,2.3107]
[1718693931736,0.863,3440.3,3439.8,2.3107]
[1718693932442,0.863,3439.9,3439.8,2.3107]
[1718693932924,0.863,3439.9,3439.0,2.2712]
[1718693933312,0.863,3439.9,3439.0,2.9078]
[1718693933616,0.863,3439.9,3439.1,2.433]
[1718693936793,2.4745,3439.8,3438.8,0.863]
[1718693937023,2.4745,3439.8,3438.3,2.90743612]
[1718693937024,0.863,3438.9,3438.3,2.2992]
[1718693937354,7.43,3439.5,3438.3,2.2992]
[1718693937487,0.863,3438.7,3438.3,2.2992]
[1718693937686,0.863,3438.7,3438.4,0.22992]
[1718693938010,3.0,3439.4,3438.6,2.2992]
[1718693938188,3.863,3439.4,3438.6,2.2992]
[1718693938385,0.863,3439.2,3438.6,2.2992]
[1718693938900,3.0,3439.4,3438.6,2.2992]
[1718693939124,3.863,3439.4,3438.7,0.339212]
[1718693939419,7.43,3439.5,3438.7,0.339212]
[1718693939789,7.43,3439.5,3438.8,2.2992]
[1718693940205,7.43,3439.5,3438.9,0.05815649]
[1718693940519,7.43,3439.5,3439.0,0.26965685]
[1718693940821,0.50314178,3439.9,3439.0,0.26965685]
[1718693940995,3.50314178,3439.9,3439.0,0.26965685]
[1718693941315,3.0,3439.9,3439.0,0.26965685]
[1718693941487,3.0,3440.0,3438.8,2.2992]
[1718693946232,3.50314178,3440.1,3438.8,2.2992]
[1718693946528,3.0,3440.1,3438.8,2.2992]
[1718693948107,2.073,3439.8,3438.8,2.2992]
[1718693948934,2.2538,3439.7,3437.9,2.298]
[1718693949135,5.7611,3439.7,3438.0,1.263681]
[1718693949437,5.7611,3439.7,3437.9,5.20674]
[1718693950013,5.7611,3439.7,3438.0,2.4262]
[1718693953948,5.7611,3439.7,3438.1,2.52646113]
[1718693954243,3.0,3439.7,3438.3,2.90839]
[1718693954457,3.0,3439.7,3438.4,2.52645604]
[1718693954617,2.3885,3440.0,3438.4,2.52645604]
[1718693954618,5.3885,3440.0,3438.4,2.52645604]
[1718693954813,6.43465,3440.0,3438.6,2.3328]
[1718693955526,3.50316038,3440.1,3438.8,2.2895]
[1718693955527,0.50316038,3440.1,3438.8,2.2895]
[1718693955727,0.50316038,3440.5,3439.1,2.2895]
[1718693955974,7.43,3440.6,3439.3,2.487]
[1718693956111,2.3135,3441.0,3439.4,0.60341301]
[1718693956112,2.81666038,3441.0,3439.4,0.60341301]
[1718693956319,2.3135,3441.0,3439.5,2.487]
[1718693956618,2.3135,3441.0,3439.6,0.05813812]
[1718693957245,2.3135,3441.0,3439.5,2.487]
[1718693957450,0.50301626,3441.1,3439.6,0.05813807]
[1718693957656,2.3748,3441.4,3439.6,0.65212056]
[1718693957826,2.3748,3441.4,3439.6,3.55942056]
[1718693959155,2.073,3441.2,3439.6,0.59398249]
[1718693959363,2.073,3441.2,3439.5,2.487]
[1718693959364,0.74478,3441.1,3439.7,0.65336674]
[1718693959724,3.74478,3441.1,3439.7,0.65336674]
[1718693960458,2.073,3440.8,3439.5,2.487]
[1718693965920,3.0,3441.0,3439.7,2.4322]
[1718693966131,3.50301984,3441.3,3439.9,2.4322]
[1718693966339,1.09330198,3441.2,3440.0,0.53975019]
[1718693966535,1.09330198,3441.2,3440.0,0.59788211]
[1718693966951,3.0,3441.5,3440.0,0.59788211]
[1718693967224,5.073,3441.6,3440.0,0.59788211]
[1718693967431,5.073,3441.6,3440.0,0.53975019]
[1718693968238,3.065,3441.5,3439.9,2.4322]
[1718693968537,2.073,3441.2,3439.9,2.4322]
[1718693970357,2.073,3441.2,3440.0,0.05813333]
[1718693970674,3.0,3441.6,3440.2,2.2537]
[1718693970829,5.5759622,3441.7,3440.2,2.2537]
[1718693971030,5.5759622,3441.7,3440.2,2.769766]
[1718693971031,1.52798622,3441.6,3440.2,2.769766]
[1718693974627,3.0,3441.7,3440.2,2.769766]
[1718693974869,3.0,3441.7,3440.3,0.05812983]
[1718693975051,3.0,3441.7,3440.4,2.4059]
[1718693975375,2.073,3441.8,3440.4,2.4059]
[1718693979272,2.073,3441.8,3440.5,2.45292634]
[1718693979471,2.073,3441.8,3440.7,2.3281]
[1718693980480,3.0,3442.0,3440.8,0.05812156]
[1718693980779,0.5029073,3442.1,3440.8,2.46992022]
[1718693980780,3.5029073,3442.1,3440.8,2.46992022]
[1718693980987,3.0,3442.1,3440.8,2.4118]
[1718693981283,3.50284121,3442.1,3440.8,2.4118]
[1718693981586,1.60058412,3442.0,3440.9,0.26570926]
[1718693983481,3.50284432,3442.1,3440.9,0.26570926]
[1718693983844,5.57584432,3442.1,3440.9,0.26570926]
[1718693984848,5.073,3442.1,3440.9,0.26570926]
[1718693985153,3.0,3442.1,3441.1,2.4757]